[Event "Baku Open 2024"]
[Site "Baku"]
[Date "2024.07.05"]
[Round "7.20"]
[White "Kurmangaliyeva, Liya"]
[Black "Aradhya, Garg"]
[Result "1/2-1/2"]
[ECO "D15"]
[WhiteElo "2282"]
[BlackElo "2418"]
[Annotator "TA"]
[PlyCount "64"]
[EventDate "2024.06.29"]
[EventType "swiss"]
[EventCountry "AZE"]
[SourceTitle "playchess.com"]
[Source "ChessBase"]
[SourceQuality "1"]
[TimeControl "5400+30"]

{[%evp 9,64,-4,16,-10,0,-32,-33,-26,-35,-29,-10,-17,10,7,20,20,7,17,20,6,26,32,58,64,55,0,0,0,10,0,0,0,0,0,18,13,14,19,10,11,15,12,19,9,14,13,17,-19,9,6,9,0,18,18,83,2,3]} 1. d4 {[%emt 0:00:17]} d5 {[%emt 0:00:03]} 2. c4 {[%emt 0:00:16]} c6 {[%emt 0:00:11]} 3. Nf3 {[%emt 0:00:29]} Nf6 {[%emt 0:00:03]} 4. Nc3 {[%emt 0:00:27]} dxc4 {[%emt 0:00:04]} 5. g3 {[%emt 0:00:21]} g6 {[%emt 0:01:14]} 6. e4 {[%emt 0:01:06][%mdl 1024] White has compensation.} b5 {[%emt 0:04:38]} 7. h4 {[%emt 0:00:09]} Bg4 {[%emt 0:02:23]} 8. e5 {[%emt 0:02:53] Black is slightly better.} Nd5 {[%emt 0:00:44][%cal Bf6d5,Bd5b4,Bb4d3][%mdl 32]} 9. a4 {[%emt 0:02:30]} Nb4 {[%emt 0:07:42] [#] Strongly threatening ...Bxf3.} 10. Be2 {[%emt 0:03:32]} Bxf3 {[%emt 0:14:09]} 11. Bxf3 {[%emt 0:01:28] Threatens to win with 0-0.} Nd3+ {[%emt 0:00:09]} 12. Kf1 {[%emt 0:00:33]} b4 {[%emt 0:00:16]} (12... Qxd4 13. Be3 Qd7 (13... Qxe5 14. axb5 Qd6 15. Qa4 $16) 14. axb5 $16) 13. Ne2 {[%emt 0:01:09] Black must now prevent Qc2.} Nxe5 $1 {[%emt 0:00:26] A dynamic duo of knights.} 14. Be4 {[%emt 0:00:25]} Bg7 {[%emt 0:11:07]} 15. Qc2 {[%emt 0:01:13]} b3 {[%emt 0:06:16]} 16. Qc3 {[%emt 0:05:37]} Ng4 {[%emt 0:00:10]} 17. Bf3 {[%emt 0:23:59]} (17. h5 $14) 17... h5 $11 {[%emt 0:06:41]} 18. Qxc4 {[%emt 0:06:56][%cal Oc1g5]} O-O {[%emt 0:00:24]} 19. Bg5 {[%emt 0:06:25][%cal Of1g2]} (19. Bxc6 $2 Nxc6 20. Qxc6 Bxd4 $19) 19... Nd7 {[%emt 0:04:51][%cal Oc6c5]} 20. Bxg4 {[%emt 0:17:10]} hxg4 {[%emt 0:01:23]} 21. h5 $1 {[%emt 0:00:33]} Nb6 {[%emt 0:09:08]} 22. Qxb3 {[%emt 0:00:53]} Qd5 {[%emt 0:00:28]} (22... Nd5 {simplifies} 23. Rc1 Qd7 24. Qc2 Qe6) 23. Qxd5 {[%emt 0:00:28]} Nxd5 {[%emt 0:00:04]} 24. hxg6 {[%emt 0:00:14]} fxg6 {[%emt 0:00:11]} 25. Rh4 {[%emt 0:06:14]} Rab8 {[%emt 0:04:57]} 26. Rb1 {[%emt 0:01:10]} Rb4 {[%emt 0:02:45]} 27. Rxg4 {[%emt 0:08:51]} Rxa4 {[%emt 0:04:31]} 28. Bd2 {[%emt 0:02:25]} Rf6 {[%emt 0:02:39]} 29. Nc3 {[%emt 0:01:42]} Nxc3 {[%emt 0:04:19]} 30. Bxc3 {[%emt 0:02:49]} c5 {[%emt 0:01:39]} 31. Re1 {[%emt 0:01:35]} Rf7 {[%emt 0:04:03]} (31... cxd4 $11 32. b3 (32. Rxe7 Ra1+ 33. Be1 Bf8 $11) (32. Bxd4 e5 $17) (32. Rxd4 Rxf2+ 33. Kxf2 Bxd4+ 34. Bxd4 Rxd4 $11) 32... Ra2 33. Bxd4 (33. Rxd4 $2 {too greedy.} Rfxf2+ 34. Kg1 Rg2+ 35. Kh1 Bxd4 $19) 33... e5 34. Rxe5 (34. Bxe5 Rfxf2+ 35. Kg1 Rg2+ 36. Kh1 Bxe5 $11) 34... Rfxf2+ 35. Bxf2 Bxe5) 32. Ree4 {[%emt 0:00:50]} ({Better is} 32. Rxg6 $16 Kh7 33. Rxg7+ Kxg7 34. dxc5+ Kg8 35. Re5) 32... cxd4 {[%emt 0:00:39] Weighted Error Value: White=0.12 (very precise) /Black=0.12 (very precise) .  Mistake:       	White=2     	Black=1      Inaccurate:     	White=2     	Black=3      OK:         	White=15    	Black=9      Best:        	White=1     	Black=1      Strong:       	White=1     	Black=1} 1/2-1/2

[Event "Baku Open 2024"]
[Site "Baku"]
[Date "2024.07.05"]
[Round "7.21"]
[White "Suleimen, Ergali"]
[Black "Ahmad, Khagan"]
[Result "1-0"]
[ECO "B90"]
[WhiteElo "2254"]
[BlackElo "2401"]
[Annotator "TA"]
[PlyCount "55"]
[EventDate "2024.06.29"]
[EventType "swiss"]
[EventCountry "AZE"]
[SourceTitle "playchess.com"]
[Source "ChessBase"]
[SourceQuality "1"]
[TimeControl "5400+30"]

{[%evp 13,55,8,10,0,6,7,28,17,27,26,26,26,27,18,22,38,47,57,66,55,157,139,143,143,131,133,366,303,505,503,504,502,1001,995,1335,1333,29986,29983,29987,29988,29988,29989,29987,-114]} 1. e4 {[%emt 0:00:02]} c5 {[%emt 0:03:50]} 2. Nf3 {[%emt 0:00:13]} d6 {[%emt 0:00:13]} 3. d4 {[%emt 0:00:18]} cxd4 {[%emt 0:00:08]} 4. Nxd4 {[%emt 0:00:06]} Nf6 {[%emt 0:00:05]} 5. Nc3 {[%emt 0:00:17]} a6 {[%emt 0:00:03]} 6. Be3 {[%emt 0:00:29]} e5 {[%emt 0:00:06]} 7. Nb3 {[%emt 0:00:17]} Be7 {[%emt 0:00:08]} 8. Rg1 {[%emt 0:01:44]} Be6 {[%emt 0:04:39]} 9. g4 {[%emt 0:01:19]} h6 {[%emt 0:01:10]} 10. Qf3 {[%emt 0:02:19] White has an edge.} Nbd7 {[%emt 0:00:14]} 11. O-O-O {[%emt 0:01:09]} Nh7 {[%emt 0:00:15]} 12. Nd5 {[%emt 0:02:39]} Bg5 {[%emt 0:00:30]} 13. Kb1 {[%emt 0:11:12]} O-O {[%emt 0:21:51]} 14. Qg3 {[%emt 0:02:55]} Bxd5 {[%emt 0:02:46]} 15. exd5 {[%emt 0:00:17]} b5 {[%emt 0:11:05]} 16. Bd3 {[%emt 0:02:31]} a5 {[%emt 0:04:47]} (16... Bh4 $14 17. Qh3 Bg5) 17. Bxg5 {[%emt 0:10:34]} hxg5 {[%emt 0:03:13]} 18. Rh1 {[%emt 0:08:07][%cal Oh2h4] Black must now prevent h4! White has more active pieces.} g6 {[%emt 0:21:08]} 19. h4 {[%emt 0:07:08] Strongly threatening h5.} gxh4 {[%emt 0:17:43] Black cannot hold the game after this.} (19... Kg7 $16) 20. Rxh4 $18 {[%emt 0:00:29]} Ng5 $2 {[%emt 0:01:18]} (20... a4 {keeps fighting.}) 21. Rdh1 {[%emt 0:10:50]} (21. Bxb5 a4 $18) 21... a4 {[%emt 0:01:02]} 22. Nd4 {[%emt 0:01:39][%cal Of2f4] Threatens to win with f4!} Kg7 {[%emt 0:02:41]} (22... Qf6 $142 23. Nf5 (23. Nxb5 Kg7 $16) (23. Bxb5 Rfb8 $18) 23... gxf5) 23. f4 {[%emt 0:05:54]} (23. Nxb5 Qf6 $16) 23... exf4 {[%emt 0:00:11]} 24. Qxf4 {[%emt 0:00:04]} Ne5 {[%emt 0:02:20] [#]} 25. Bxg6 $1 {[%emt 0:05:36][%mdl 512] White mates.} Nxg6 {[%emt 0:00:56]} 26. Nf5+ {[%emt 0:00:43]} Kg8 {[%emt 0:00:01] [#]} 27. Rh7 $3 {[%emt 0:01:19][%csl Gf5][%cal Rh7g7][%mdl 512]} Re8 {[%emt 0:01:06]} 28. Rg7+ {[%emt 0:00:26][%mdl 32768] Weighted Error Value: White=0.02 (flawless) /Black=0.61.  Loses game:     	---       	Black=1      Mistake:       	---       	Black=3      Inaccurate:     	---       	Black=1      OK:         	White=5     	Black=3      Best:        	White=3     	Black=1     . Loss on time!?} (28. Qxd6 $2 {loses.} Qxd6 (28... Nxh7 29. Nh6+ Kg7 30. Nf5+ Kh8 31. Qh2 $19) 29. Nxd6 Nxh7 $19) 1-0

[Event "Baku Open 2024"]
[Site "Baku"]
[Date "2024.07.05"]
[Round "7.22"]
[White "Valiyev, Shahin"]
[Black "Soham Kamotra"]
[Result "0-1"]
[ECO "B89"]
[WhiteElo "2244"]
[BlackElo "2388"]
[Annotator "TA"]
[PlyCount "67"]
[EventDate "2024.06.29"]
[EventType "swiss"]
[EventCountry "AZE"]
[SourceTitle "playchess.com"]
[Source "ChessBase"]
[SourceQuality "1"]
[TimeControl "5400+30"]

{[%evp 15,67,12,15,12,28,0,0,-6,1,0,10,0,0,0,0,0,0,0,0,-44,-33,-86,-89,-152,-129,-117,-119,-137,-122,-124,-139,-96,-48,-68,0,0,0,0,-5,-114,-85,-380,-399,-642,-621,-1368,-1289,-29991,-29992,-29993,-29994,-29994,-29995,-29997]} 1. e4 {[%emt 0:00:03]} c5 {[%emt 0:00:05]} 2. Nf3 {[%emt 0:00:05]} d6 {[%emt 0:00:04]} 3. d4 {[%emt 1:31:52]} cxd4 {[%emt 0:00:04]} 4. Nxd4 {[%emt 0:00:00]} Nf6 {[%emt 0:00:05]} 5. Nc3 {[%emt 0:00:00]} Nc6 {[%emt 0:00:04]} 6. Bc4 {[%emt 0:00:00]} e6 {[%emt 0:02:23]} 7. Be3 {[%emt 0:00:00]} Bd7 {[%emt 0:01:51]} 8. Qe2 {[%emt 0:00:00]} a6 {[%emt 0:04:47]} 9. a3 {[%emt 0:00:00]} Rc8 {[%emt 0:02:09]} 10. f3 {[%emt 0:00:00][%cal Bf2f3,Bf3f4,Bf4f5][%mdl 32]} Be7 {[%emt 0:02:22]} 11. Ba2 {[%emt 0:00:00] The position is equal.} b5 {[%emt 0:10:49]} 12. g4 {[%emt 0:00:00]} Qa5 {[%emt 0:07:55]} 13. Nb3 {[%emt 0:00:00]} Qc7 {[%emt 0:00:35]} 14. g5 {[%emt 0:00:00]} Nh5 {[%emt 0:00:14]} 15. f4 {[%emt 0:00:00]} g6 {[%emt 0:01:18]} 16. f5 {[%emt 0:00:00]} O-O {[%emt 0:00:43]} 17. f6 {[%emt 0:00:00]} Bd8 {[%emt 0:08:33]} 18. Nd2 {[%emt 0:00:00]} ({Better is} 18. O-O-O $15) 18... Qb7 {[%emt 0:06:38]} 19. Nf1 {[%emt 0:00:00]} (19. Nf3 $142) 19... b4 {[%emt 0:06:57]} 20. axb4 {[%emt 0:00:00]} Qxb4 {[%emt 0:00:02]} 21. Bb3 {[%emt 0:00:00][%cal Oa1a4] [#]} Na5 $1 {[%emt 0:00:24]} 22. Ng3 {[%emt 0:00:00]} Nxb3 {[%emt 0:18:45]} 23. cxb3 {[%emt 0:00:00]} Bb5 {[%emt 0:06:44]} (23... Qxb3 24. Nxh5 Rxc3 (24... gxh5 25. O-O $11) 25. bxc3 $14) (23... d5 $17 {Threatens to win with ...d4.} 24. Qd2 (24. Nxh5 d4 $17) 24... Nxg3 (24... Qxb3 25. Nxh5 gxh5 26. O-O $15) 25. hxg3 Bc7 (25... Qxb3 26. Rxh7 Kxh7 27. Qh2+ Kg8 28. Qh6)) 24. Qd1 $15 {[%emt 0:00:00] [#]} Nxf6 {[%emt 0:01:26]} 25. gxf6 $11 {[%emt 0:00:00]} Bxf6 {[%emt 0:00:05]} 26. Bd2 {[%emt 0:00:00][%cal Oc3d5]} Be5 $36 {[%emt 0:02:03][%mdl 2048] White is under pressure. This pair of bishops is nice.} 27. Kf2 {[%emt 0:04:47]} (27. Nxb5 $11 Qxb5 28. Rf1) 27... f5 {[%emt 0:01:40] Chess con chili. Black is more active.} 28. exf5 {[%emt 0:00:20][%mdl 8192] Now White is beyond hope.} (28. Nxb5 $17 Qc5+ (28... Qxb5 29. Rf1 $17) (28... fxe4+ 29. Kg2 $11) 29. Ke1 Qxb5 30. Rf1) 28... Bc6 $19 {[%emt 0:00:16]} ({Inferior is} 28... gxf5 29. Nxb5 Qxb5 30. Ne2 $16) 29. Nce2 $2 {[%emt 0:03:11]} (29. Qf1 Qh4 (29... gxf5 30. Rg1 $19) (29... exf5 $2 30. Qc4+ Qxc4 31. bxc4 $19) 30. Ke2) 29... Qh4 {[%emt 0:00:34]} 30. Ra4 {[%emt 0:02:18]} Rxf5+ {[%emt 0:02:18]} 31. Kg1 {[%emt 0:00:09]} Qh3 {[%emt 0:00:31][%csl Gc6][%cal Rh3g2] Black mates.} 32. Re4 {[%emt 0:01:01]} Bxe4 {[%emt 0:00:41]} 33. Nxe4 {[%emt 0:00:05]} Rcf8 {[%emt 0:00:05]} 34. N2g3 {[%emt 0:01:03] Weighted Error Value: White=0.88/Black=0.09 (flawless) .  Loses game:     	White=1     	---        Mistake:       	White=4     	Black=2      Inaccurate:     	White=3     	---        OK:         	White=8     	Black=9      Best:        	---       	Black=1} 0-1

[Event "Baku Open 2024"]
[Site "Baku"]
[Date "2024.07.05"]
[Round "7.23"]
[White "Iskandarov, Misratdin"]
[Black "Wagh Suyog"]
[Result "1-0"]
[ECO "B10"]
[WhiteElo "2524"]
[BlackElo "2230"]
[Annotator "TA"]
[PlyCount "89"]
[EventDate "2024.06.29"]
[EventType "swiss"]
[EventCountry "AZE"]
[SourceTitle "playchess.com"]
[Source "ChessBase"]
[SourceQuality "1"]
[TimeControl "5400+30"]

{[%evp 9,89,0,0,0,30,21,33,0,5,2,0,-29,-35,-45,10,11,10,0,9,-6,8,0,0,0,0,0,0,0,-2,-9,0,-8,0,0,0,-31,-25,-39,0,0,0,0,0,0,15,17,35,0,45,43,74,53,179,175,164,58,72,60,173,172,215,210,205,213,186,191,237,237,418,422,419,432,443,439,446,453,29995,29996,29996,29997,29997,396]} 1. e4 {[%emt 0:00:05]} c6 {[%emt 0:00:49]} 2. Nf3 {[%emt 0:00:29]} d5 {[%emt 0:00:05]} 3. d3 {[%emt 0:00:16]} dxe4 {[%emt 0:00:04]} 4. dxe4 {[%emt 0:00:05]} Qxd1+ {[%emt 0:00:03]} 5. Kxd1 {[%emt 0:00:07]} Nf6 {[%emt 0:00:17]} 6. Nfd2 {[%emt 0:01:03]} g6 {[%emt 0:00:04]} 7. f3 {[%emt 0:00:24]} Bh6 {[%emt 1:32:38]} 8. b3 {[%emt 0:01:48] White is slightly better.} Be6 {[%emt 0:00:00]} 9. a4 {[%emt 0:01:05]} Nbd7 {[%emt 0:00:00]} 10. Ba3 {[%emt 0:02:16]} Bf4 {[%emt 0:00:00]} 11. Bc4 {[%emt 0:06:26]} Bxc4 {[%emt 0:00:00]} ({Black should play} 11... Nf8 $15) 12. Nxc4 $11 {[%emt 0:00:26]} Ne5 {[%emt 0:00:00]} 13. Ncd2 {[%emt 0:08:51]} Ned7 {[%emt 0:00:00][%cal Be5d7,Bd7f8,Bf8e6][%mdl 32]} 14. Ke2 {[%emt 0:01:28]} h5 {[%emt 0:00:00]} 15. Nc4 {[%emt 0:06:25][%cal Bd2c4,Bc4b2,Bb2d3][%mdl 32]} h4 {[%emt 0:00:00]} 16. Nbd2 {[%emt 0:04:13]} Bc7 {[%emt 0:00:00]} 17. Bb2 {[%emt 0:05:27][%cal Ba3b2,Bb2d4,Bd4e3][%mdl 32]} Rh5 {[%emt 0:00:00]} 18. Bd4 {[%emt 0:06:20]} Nf8 {[%emt 0:00:00]} 19. Be3 {[%emt 0:06:40]} a5 {[%emt 0:00:00]} 20. Nb2 {[%emt 0:01:43]} (20. g4 hxg3 21. hxg3 Bxg3 $15) 20... Ne6 {[%emt 0:00:00]} 21. Nd3 {[%emt 0:00:08]} O-O-O {[%emt 0:00:00]} 22. c3 {[%emt 0:10:08]} Nd7 {[%emt 0:00:00]} 23. Rad1 {[%emt 0:10:23]} Bb6 {[%emt 0:00:00]} (23... f5 {is interesting.} 24. h3 Nf6 25. Rhe1 Rd7) 24. Nc4 {[%emt 0:10:13]} Bxe3 {[%emt 0:00:00]} 25. Kxe3 {[%emt 0:00:05]} Kc7 {[%emt 0:00:00]} 26. b4 {[%emt 0:04:24]} axb4 {[%emt 0:00:00]} 27. cxb4 {[%emt 0:00:02]} f6 {[%emt 0:00:00]} 28. Rd2 {[%emt 0:01:18]} Rhh8 {[%emt 0:01:56]} 29. a5 {[%emt 0:04:07]} Nb8 {[%emt 0:04:43]} 30. Rc1 {[%emt 0:00:56]} Rd7 {[%emt 0:01:08]} (30... Na6 $14) 31. Nb6 $18 {[%emt 0:01:13]} Rd6 {[%emt 0:00:20]} 32. e5 {[%emt 0:02:57]} ({White should try} 32. Rb2 $18) 32... fxe5 $1 $14 {[%emt 0:02:06]} 33. Nc4 $40 {[%emt 0:05:29][%mdl 128] White mounts an attack. White is more active.} Rdd8 {[%emt 0:00:49]} (33... Nd4 $14) 34. Ncxe5 $18 {[%emt 0:00:00]} (34. Ndxe5 Rxd2 35. Nxd2 g5 $16) 34... Rhg8 {[%emt 0:00:06]} 35. b5 {[%emt 0:00:00]} Rd5 {[%emt 0:00:17]} 36. bxc6 {[%emt 0:00:00]} bxc6 {[%emt 0:00:13]} 37. Ra2 {[%emt 0:00:00] Hoping for a6.} Kb7 {[%emt 0:00:48]} (37... Nd4 {keeps fighting.} 38. Rc5 Nf5+ 39. Kf4 Nd4) 38. a6+ {[%emt 0:00:00]} Nxa6 $2 {[%emt 0:00:26] [#]} (38... Ka8 39. a7 (39. Nxc6 Nxc6 40. Rxc6 Nd4 $18) 39... Nd7) 39. Rxa6 $1 {[%emt 0:00:12][%mdl 512]} Kxa6 {[%emt 0:01:14]} 40. Rxc6+ {[%emt 0:00:11]} ({Worse is} 40. Nxc6 Rd6 $15) 40... Kb5 {[%emt 0:00:57]} 41. Rxe6 {[%emt 0:00:07]} g5 {[%emt 0:00:23]} 42. Rxe7 {[%emt 0:00:06]} Rdd8 {[%emt 0:00:31]} (42... Rd6 $18 43. g4 hxg3 44. hxg3 Ra6) 43. Rb7+ {[%emt 0:00:11] White mates.} Ka4 {[%emt 0:00:16]} 44. Nc5+ {[%emt 0:00:50]} Ka3 {[%emt 0:00:06]} 45. Nc4+ {[%emt 0:00:05] Weighted Error Value: White=0.12 (very precise) /Black=0.43.  Mistake:       	White=1     	Black=6      Inaccurate:     	White=4     	Black=4      OK:         	White=14    	Black=12     Best:        	White=3     	---        Strong:       	---       	Black=1      Brilliant:      	White=1     	---} 1-0

[Event "Baku Open 2024"]
[Site "Baku"]
[Date "2024.07.05"]
[Round "7.24"]
[White "Tsaruk, Maksim"]
[Black "Tregubenko, Nikolay"]
[Result "1/2-1/2"]
[ECO "B21"]
[WhiteElo "2480"]
[BlackElo "2246"]
[Annotator "TA"]
[PlyCount "107"]
[EventDate "2024.06.29"]
[EventType "swiss"]
[EventCountry "AZE"]
[SourceTitle "playchess.com"]
[Source "ChessBase"]
[SourceQuality "1"]
[TimeControl "5400+30"]

{[%evp 10,107,-7,-6,0,6,9,14,0,7,47,60,64,54,66,68,76,67,91,89,96,91,94,78,89,85,87,81,75,77,80,77,96,36,100,0,91,100,93,87,120,69,75,75,171,50,77,43,39,31,43,31,41,38,39,50,37,31,25,21,21,22,32,23,23,22,66,66,66,66,66,66,66,66,125,73,81,81,81,81,81,81,209,29,29,29,29,27,27,26,26,26,25,25,26,8,8,8,8,8]} 1. e4 {[%emt 0:00:04]} c5 {[%emt 0:05:31]} 2. Be2 {[%emt 0:00:49]} d6 {[%emt 0:02:10]} 3. f4 {[%emt 0:00:23]} g6 {[%emt 0:00:47]} 4. Nf3 {[%emt 0:00:09]} Bg7 {[%emt 0:00:57]} 5. O-O {[%emt 0:00:08]} Nc6 {[%emt 0:00:23]} 6. d3 {[%emt 0:02:22]} e6 {[%emt 0:01:29]} 7. c3 {[%emt 0:04:56]} Nge7 {[%emt 0:00:45]} 8. Be3 {[%emt 0:00:06]} O-O {[%emt 0:00:47]} 9. d4 {[%emt 0:00:28]} d5 {[%emt 0:06:23]} 10. e5 {[%emt 0:00:14]} cxd4 {[%emt 0:03:54]} 11. cxd4 {[%emt 0:00:05]} Bd7 {[%emt 0:01:04]} 12. Nc3 {[%emt 0:00:19]} f6 {[%emt 0:01:53]} 13. g4 {[%emt 0:02:13]} Na5 {[%emt 0:05:53]} 14. b3 $1 {[%emt 0:23:18] Against Nc4. White is more active.} a6 {[%emt 0:01:10]} 15. Qd2 {[%emt 0:00:57]} Rc8 {[%emt 0:02:29][%cal Ba8c8,Bc8c7,Bc7c3][%mdl 32]} 16. Nd1 {[%emt 0:14:57]} Qb6 {[%emt 0:03:38]} 17. Nb2 {[%emt 0:03:14]} Bb5 {[%emt 0:03:06]} 18. Nd3 {[%emt 0:00:53]} Bxd3 {[%emt 0:00:26]} 19. Bxd3 {[%emt 0:00:38]} Nac6 {[%emt 0:00:35]} 20. Rae1 {[%emt 0:03:50]} Rc7 {[%emt 0:07:14]} 21. Bb1 {[%emt 0:06:24]} (21. exf6 $16 Bxf6 22. Qf2) 21... Rfc8 {[%emt 0:02:51]} (21... f5 $1 $14) 22. Bf2 {[%emt 0:13:48]} (22. exf6 $1 $16 Bxf6 23. Kg2) 22... Nb4 {[%emt 0:05:18]} (22... f5 $11) 23. exf6 $16 {[%emt 0:00:33]} Bxf6 {[%emt 0:00:07]} 24. Qe2 {[%emt 0:01:10]} Rc3 {[%emt 0:07:51]} 25. Qxe6+ {[%emt 0:04:59]} ({White should try} 25. Kg2 $16) 25... Qxe6 $14 {[%emt 0:00:01]} 26. Rxe6 {[%emt 0:00:01] aiming for Be1.} R8c6 {[%emt 0:09:01]} (26... Kf7 $16 27. Re3 Rxe3 28. Bxe3 Nc2) 27. Re3 {[%emt 0:01:00]} (27. Rxc6 $1 $18 Nexc6 28. Be1) 27... Nc2 {[%emt 0:02:31]} 28. Rxc3 {[%emt 0:04:42]} Rxc3 {[%emt 0:00:01]} 29. Ne5 {[%emt 0:00:21]} Nc6 {[%emt 0:04:24]} 30. Nxc6 {[%emt 0:02:41]} bxc6 {[%emt 0:00:40]} 31. Rc1 {[%emt 0:01:58]} Nxd4 {[%emt 0:00:23]} 32. Rxc3 {[%emt 0:00:05]} Ne2+ {[%emt 0:00:01]} 33. Kg2 {[%emt 0:00:07]} Nxc3 {[%emt 0:00:39][%mdl 4096] Endgame. KBB-KBN} 34. Bd3 {[%emt 0:00:05]} Nxa2 {[%emt 0:01:03]} 35. Bxa6 {[%emt 0:00:07]} Kf7 {[%emt 0:01:10]} 36. Bb7 {[%emt 0:01:09]} Nb4 {[%emt 0:00:11]} 37. Be1 {[%emt 0:00:05]} c5 {[%emt 0:00:48]} 38. g5 {[%emt 0:00:57]} Be7 {[%emt 0:01:30]} 39. Kf3 {[%emt 0:01:07]} Kg7 {[%emt 0:01:38]} 40. h4 {[%emt 0:00:33]} Bd6 {[%emt 0:00:26]} 41. Bd2 {[%emt 0:01:05]} c4 {[%emt 0:03:28] [#]} ({Black should play} 41... Kf8 $14) 42. Bc3+ {[%emt 0:02:13]} (42. bxc4 $142 $1 dxc4 43. Be4) 42... Kf8 $16 {[%emt 0:00:15]} 43. bxc4 {[%emt 0:00:49]} dxc4 {[%emt 0:00:03]} 44. Be4 {[%emt 0:00:09] And now f5 would win.} Nd3 {[%emt 0:01:35]} 45. f5 {[%emt 0:00:42]} Ne5+ {[%emt 0:02:37] [#]} (45... Be5 $16 {was necessary.} 46. Ba5 gxf5 47. Bxf5 Kg7) 46. Ke3 $2 {[%emt 0:01:20]} (46. Bxe5 $1 $18 Bxe5 47. fxg6) 46... gxf5 $1 $11 {[%emt 0:00:53]} 47. Bxf5 {[%emt 0:00:05] A strong pair of Bishops.} Ng6 {[%emt 0:00:16]} 48. Be1 {[%emt 0:01:27]} Be7 {[%emt 0:00:25]} 49. Kd4 {[%emt 0:00:29]} Nxh4 {[%emt 0:00:19]} 50. Bxh4 {[%emt 0:00:05]} h6 {[%emt 0:00:04]} 51. Kxc4 {[%emt 0:00:05]} Bxg5 {[%emt 0:00:04]} 52. Bxg5 {[%emt 0:00:06]} hxg5 {[%emt 0:00:04]} 53. Kd5 {[%emt 0:00:06]} (53. Kd4 $5) 53... g4 {[%emt 0:00:04]} 54. Bxg4 {[%emt 0:00:04] Weighted Error Value: White=0.17 (very precise) /Black=0.18 (very precise) .  Missed win:     	White=1     	---        Mistake:       	White=5     	Black=5      Inaccurate:     	White=1     	Black=3      OK:         	White=20    	Black=11     Best:        	White=4     	Black=5      Strong:       	White=1     	Black=1} 1/2-1/2